bitfinex-derivatives/quotes_ETHF0:USTF0_20250317
["timestamp","ask_amount","ask_price","bid_price","bid_amount"]
[1742189714858,29.17487857,1902.0,1901.9,45.75116]
[1742189715758,29.17487857,1902.0,1901.9,43.25116]
[1742189716156,29.17487857,1902.0,1901.9,45.75116]
[1742189716861,0.00787857,1902.0,1901.9,45.75116]
[1742189718163,3.371,1902.1,1902.0,1.0516]
[1742189718464,3.371,1902.1,1902.0,6.418]
[1742189718760,3.371,1902.2,1902.1,1.0515]
[1742189718957,3.371,1902.2,1902.1,2.4913]
[1742189721165,0.00787857,1902.3,1902.2,1.05149]
[1742189721358,0.00787857,1902.3,1902.2,5.59969]
[1742189721672,29.167,1902.5,1902.2,7.0482]
[1742189721863,29.167,1902.5,1902.4,1.05138]
[1742189722062,29.167,1902.5,1902.4,6.75918]
[1742189722463,29.167,1902.5,1902.4,4.93638]
[1742189722663,29.167,1902.5,1902.4,7.43638]
[1742189724267,3.37880872,1902.6,1902.5,1.05133]
[1742189724457,3.37880872,1902.6,1902.5,2.48313]
[1742189724860,3.37880872,1902.6,1902.5,3.14143]
[1742189726460,3.37880872,1902.6,1902.4,3.2078]
[1742189726664,1.05138,1902.4,1902.3,1.4318]
[1742189726865,2.1624,1902.5,1902.2,6.6583]
[1742189727067,2.1624,1902.5,1902.4,4.25918]
[1742189727068,1.438,1902.5,1902.4,4.25918]
[1742189727271,1.438,1902.5,1902.4,1.05138]
[1742189727571,1.438,1902.5,1902.4,2.47828]
[1742189736277,2.48933,1902.5,1902.4,1.4269]
[1742189736479,1.438,1902.5,1902.4,1.4269]
[1742189736877,1.438,1902.5,1902.4,2.47828]
[1742189738867,1.438,1902.5,1902.0,40.8]
[1742189738868,4.6458,1902.5,1902.0,44.0078]
[1742189739172,1.7203,1902.4,1902.0,45.0594]
[1742189739373,3.37,1902.3,1902.1,1.4121]
[1742189739572,6.48524,1902.3,1902.1,1.4121]
[1742189739767,1.3991,1902.2,1902.1,1.4121]
[1742189740177,2.45059,1902.2,1902.0,44.0078]
[1742189740390,0.6931,1902.1,1902.0,44.0078]
[1742189740680,2.0922,1902.1,1902.0,44.0078]
[1742189740879,3.14375,1902.1,1902.0,44.0078]
[1742189741181,5.3,1902.1,1902.0,40.8]
[1742189741778,6.35155,1902.1,1902.0,40.8]
[1742189742381,5.3,1902.1,1902.0,40.8]
[1742189742780,2.0922,1902.1,1902.0,40.8]
[1742189743884,2.0922,1902.1,1902.0,42.1355]
[1742189745884,3.14375,1902.1,1902.0,42.1355]
[1742189746181,3.14375,1902.1,1902.0,40.8]
[1742189748679,2.0922,1902.1,1902.0,40.8]
[1742189749185,3.14375,1902.1,1902.0,40.8]
[1742189750694,2.45065,1902.1,1902.0,40.8]
[1742189753081,5.65845,1902.1,1902.0,40.8]
[1742189762490,2.45065,1902.1,1902.0,40.8]
[1742189766098,3.3703138,1902.1,1902.0,40.8]
[1742189766501,4.45427241,1902.1,1902.0,40.8]
[1742189766702,3.53460861,1902.1,1902.0,40.8]
[1742189766994,4.45425712,1902.1,1902.0,40.8]
[1742189767200,3.37029851,1902.1,1902.0,40.8]
[1742189768400,4.45517407,1902.1,1902.0,40.8]
[1742189768992,7.66297407,1902.1,1902.0,40.8]
[1742189771790,13.53297407,1902.1,1901.8,1.4526]
[1742189771991,1.05171,1901.8,1901.7,0.00787857]
[1742189772205,5.95860133,1901.8,1901.0,3.2078]
[1742189772501,1.05194,1901.4,1901.2,0.695]
[1742189772693,29.165,1901.4,1901.3,1.3815]
[1742189772892,32.535,1901.4,1901.3,1.3815]
[1742189773306,32.535,1901.4,1901.3,42.1815]
[1742189774404,33.58694,1901.4,1901.3,42.1815]
[1742189775203,35.02384,1901.4,1901.3,42.1815]
[1742189777300,35.02384,1901.4,1901.3,40.8]
[1742189778002,35.02384,1901.4,1901.3,42.1929]
[1742189781913,40.89384,1901.4,1901.3,42.1929]
[1742189782397,41.62014,1901.4,1901.3,42.1929]
[1742189782602,41.62014,1901.4,1901.3,40.8]
[1742189783504,42.58954897,1901.4,1901.3,40.8]
[1742189783811,48.29734897,1901.4,1901.3,40.8]
[1742189784312,49.42193444,1901.4,1901.3,40.8]
[1742189784714,1.05199,1901.3,1901.2,0.00787857]
[1742189784912,2.36709,1901.3,1901.2,0.00787857]
[1742189785411,1.05221,1900.9,1900.8,0.6915]
[1742189785605,4.42321,1900.9,1900.8,41.4915]
[1742189786112,5.10091,1900.9,1900.8,41.4915]
[1742189786513,5.10091,1900.9,1900.8,40.8]
[1742189786723,6.44691,1900.9,1900.8,42.2512]
[1742189787016,7.13451,1900.9,1900.8,42.2512]
[1742189787213,13.00451,1900.9,1900.8,40.8]
[1742189787403,1.05227,1900.8,1900.7,0.00787857]
[1742189787605,1.05243,1900.5,1900.4,1.4512]
[1742189787805,36.80823,1900.5,1900.4,1.4512]
[1742189788514,36.80823,1900.5,1900.4,42.2512]
[1742189788811,37.48593,1900.5,1900.4,42.2512]
[1742189790216,38.80613,1900.5,1900.4,40.8]
[1742189790714,39.51483,1900.5,1900.4,40.8]
[1742189791113,38.80613,1900.5,1900.4,42.2071]
[1742189794812,35.7558,1900.5,1900.4,42.9199]
[1742189795819,36.80823,1900.5,1900.4,42.9199]
[1742189796421,33.60043,1900.5,1900.4,42.9199]
[1742189797618,29.176,1900.5,1900.4,42.9199]
[1742189797816,32.549,1900.5,1900.4,42.9199]
[1742189798218,33.60143,1900.5,1900.4,42.9199]
[1742189798617,32.549,1900.5,1900.4,42.9199]
[1742189798817,33.60143,1900.5,1900.4,42.9199]
[1742189803829,32.549,1900.5,1900.4,42.9199]
[1742189804438,33.60143,1900.5,1900.4,42.9199]
[1742189804739,32.549,1900.5,1900.4,42.9199]
[1742189805734,33.60143,1900.5,1900.4,42.9199]
[1742189808536,3.377,1901.2,1900.4,57.25881]
[1742189808741,4.42912,1901.1,1900.8,4.26003]
[1742189808929,4.42912,1901.1,1900.9,2.7051]
[1742189809134,3.377,1901.1,1900.9,2.7051]
[1742189809334,4.4291,1901.1,1901.0,42.1722]
[1742189809839,4.4281,1901.1,1901.0,42.1722]
[1742189810642,5.8163,1901.1,1901.0,42.1722]
[1742189811738,6.484,1901.1,1901.0,42.1722]
[1742189816145,5.4319,1901.1,1901.0,42.1722]
[1742189816737,6.484,1901.1,1901.0,42.1722]
[1742189821354,5.8163,1901.1,1901.0,42.1722]
[1742189821649,3.372,1901.1,1901.0,42.1722]
[1742189822856,4.4241,1901.1,1901.0,42.1722]
[1742189823356,5.7889,1901.1,1901.0,42.1722]
[1742189824955,4.7368,1901.1,1901.0,42.1722]
[1742189825448,5.7889,1901.1,1901.0,42.1722]
[1742189826458,1.05238,1900.6,1900.5,3.2078]
[1742189826650,1.05238,1900.6,1900.5,0.7158]
[1742189826651,4.42438,1900.6,1900.5,0.7158]
[1742189826953,4.42438,1900.6,1900.5,41.5158]
[1742189827850,4.42438,1900.6,1900.5,42.856]
[1742189828046,5.88098,1900.6,1900.5,42.856]
[1742189829359,5.88098,1900.6,1900.5,42.1402]
[1742189832265,4.8286,1900.6,1900.5,42.1402]
[1742189833057,5.88098,1900.6,1900.5,42.1402]
[1742189836665,3.372,1900.6,1900.5,42.1402]
[1742189837064,4.42438,1900.6,1900.5,42.1402]
[1742189839665,5.79258,1900.6,1900.5,42.1402]
[1742189841066,4.7402,1900.6,1900.5,42.1402]
[1742189841269,3.372,1900.6,1900.5,42.1402]
[1742189841575,4.42438,1900.6,1900.5,42.1402]
[1742189843869,3.372,1900.6,1900.5,42.1402]
[1742189844771,3.372,1900.6,1900.5,43.19263]
[1742189845671,29.181,1900.7,1900.6,1.05238]
[1742189845870,32.553,1900.7,1900.6,3.13138]
[1742189846063,29.181,1900.7,1900.6,3.13138]
[1742189846263,32.553,1900.7,1900.6,3.13138]
[1742189846670,32.553,1900.7,1900.6,2.079]
[1742189847573,32.553,1900.7,1900.6,3.13138]
[1742189847766,32.553,1900.7,1900.6,2.079]
[1742189848065,32.553,1900.7,1900.6,3.13138]
[1742189848669,32.553,1900.7,1900.6,2.079]
[1742189849370,33.8986,1900.7,1900.6,2.079]
[1742189850473,34.95092,1900.7,1900.6,2.079]
[1742189851173,36.17886677,1900.7,1900.6,2.079]
[1742189851369,37.20260854,1900.7,1900.6,1.3829]
[1742189851872,1.05238,1900.6,1900.5,40.8]
[1742189852071,3.05558,1900.6,1900.5,42.2039]
[1742189854383,2.0032,1900.6,1900.5,42.2039]
[1742189854879,3.23192237,1900.6,1900.5,42.2039]
[1742189855268,4.25671266,1900.6,1900.5,42.2039]
[1742189856285,5.30909266,1900.6,1900.5,42.2039]
[1742189856978,4.25671266,1900.6,1900.5,42.2039]
[1742189857176,5.30909266,1900.6,1900.5,42.2039]
[1742189858180,4.25671266,1900.6,1900.5,42.2039]
[1742189858381,5.30909266,1900.6,1900.5,42.2039]
[1742189859168,4.25671266,1900.6,1900.5,42.2039]
[1742189859774,5.30909266,1900.6,1900.5,42.2039]
[1742189859974,4.25671266,1900.6,1900.5,42.2039]
[1742189861082,5.30909266,1900.6,1900.5,42.2039]
[1742189863079,6.15856585,1900.6,1900.5,42.2039]
[1742189863386,5.30909266,1900.6,1900.5,42.2039]
[1742189863578,5.30909266,1900.6,1900.5,40.8]
[1742189863783,6.15851761,1900.6,1900.5,40.8]
[1742189864180,6.15851761,1900.6,1900.5,42.2496]
[1742189864383,6.15851761,1900.6,1900.5,40.8]
[1742189866688,1.05249,1900.4,1900.3,0.00787857]
[1742189866887,4.42449,1900.4,1900.3,0.00787857]
[1742189867088,5.44928029,1900.4,1900.3,0.00787857]
[1742189867291,8.02340266,1900.4,1900.3,42.17427857]
[1742189867588,8.02340266,1900.4,1900.3,40.80787857]
[1742189867999,8.87254985,1900.4,1900.3,40.80787857]
[1742189868186,8.96105123,1900.4,1900.3,40.80787857]
[1742189868491,8.96105016,1900.4,1900.3,40.80787857]
[1742189868891,9.37585972,1900.4,1900.3,40.80787857]
[1742189869385,1.05277,1899.9,1899.8,0.7272]
[1742189869584,4.42577,1899.9,1899.8,0.7272]
[1742189870088,4.42577,1899.9,1899.6,3.2078]
[1742189870289,1.4318,1899.8,1899.6,4.5755]
[1742189870492,1.4318,1899.8,1899.7,42.1677]
[1742189870691,1.4318,1899.8,1899.7,42.876]
[1742189871193,3.373,1899.9,1899.7,43.92888]
[1742189871488,4.719,1899.9,1899.8,1.3437]
[1742189871890,4.719,1899.9,1899.7,41.5083]
[1742189872090,5.77178,1899.9,1899.8,1.3437]
[1742189872591,5.7718,1899.9,1899.7,42.852]
[1742189872787,4.4258,1899.9,1899.8,1.3437]
[1742189873383,4.4258,1899.9,1899.7,41.5083]
[1742189873384,4.4258,1899.9,1899.7,42.852]
[1742189873586,4.4258,1899.9,1899.8,1.4005]
[1742189873784,1.05282,1899.8,1899.7,40.8]
[1742189874290,4.42581,1899.9,1899.7,40.8]
[1742189874595,3.373,1899.9,1899.7,40.8]
[1742189874780,1.05282,1899.8,1899.7,40.8]
[1742189875387,1.05282,1899.8,1899.7,42.2005]
[1742189875593,1.77522,1899.8,1899.7,40.8]
[1742189875787,1.77522,1899.8,1899.7,42.2005]
[1742189879894,0.7224,1899.8,1899.7,42.2005]
[1742189880195,30.97022,1899.8,1899.7,42.2005]
[1742189881692,29.195,1899.8,1899.7,42.2005]
[1742189881886,32.568,1899.8,1899.7,42.2005]
[1742189883004,32.569,1899.8,1899.7,42.2005]
[1742189883500,33.62182,1899.8,1899.7,42.2005]
[1742189884200,32.569,1899.8,1899.7,42.2005]
[1742189884895,32.569,1899.8,1899.7,43.25338]
[1742189886102,29.195,1899.8,1899.7,43.25338]
[1742189886399,32.569,1899.8,1899.7,43.25338]
[1742189889405,29.195,1899.8,1899.7,45.75338]
[1742189889609,3.2078,1900.3,1899.7,44.7005]
[1742189889804,3.374,1900.2,1900.1,1.05266]
[1742189890303,3.2078,1900.3,1899.9,2.0222]
[1742189890515,3.2078,1900.3,1900.2,1.0526]
[1742189890709,29.197,1900.4,1900.3,1.05254]
[1742189890899,32.571,1900.4,1900.3,1.05254]
[1742189891300,32.571,1900.4,1900.3,3.09574]
[1742189892309,32.571,1900.4,1900.3,43.89574]
[1742189893904,32.571,1900.4,1900.3,3.09574]
[1742189894109,32.571,1900.4,1899.5,9.21567857]
[1742189894110,41.6488,1900.4,1899.5,9.21567857]
[1742189894412,1.05277,1899.9,1899.8,2.1532]
[1742189894603,3.402,1899.9,1899.8,2.1532]
[1742189895309,4.802,1899.9,1899.8,2.1532]
[1742189897513,1.22731478,1900.0,1899.9,1.05277]
[1742189897814,29.197,1900.4,1899.9,10.6585]
[1742189898110,29.197,1900.4,1900.3,1.05254]
[1742189898711,29.197,1900.4,1900.3,41.85254]
[1742189899604,32.604,1900.4,1900.3,41.85254]
[1742189900501,29.197,1900.4,1900.3,41.85254]
[1742189900707,32.604,1900.4,1900.3,41.85254]
[1742189901111,32.604,1900.4,1900.3,42.58224]
[1742189901707,0.00787857,1900.5,1900.3,42.58224]
[1742189901708,0.00787857,1900.5,1900.4,1.05249]
[1742189901909,3.41387857,1900.5,1900.4,1.05249]
[1742189902215,3.41387857,1900.5,1900.4,2.50089]
[1742189902517,0.00787857,1900.5,1900.4,2.50089]
[1742189903216,0.00787857,1900.5,1900.4,5.00089]
[1742189905113,6.6128,1900.7,1900.4,5.00089]
[1742189905114,3.2078,1900.7,1900.6,1.05238]
[1742189905616,1.3477,1901.0,1900.9,1.05221]
[1742189905815,4.7537,1901.0,1900.9,1.05221]
[1742189906615,4.7537,1901.0,1900.9,2.46451]
[1742189906816,4.7537,1901.0,1900.9,1.4123]
[1742189907013,4.7537,1901.0,1900.9,2.46451]
[1742189908420,4.7537,1901.0,1900.9,1.4123]
[1742189908617,1.05221,1900.9,1900.8,0.00787857]
[1742189908924,5.2688,1900.9,1900.8,0.00787857]
[1742189911421,5.2688,1900.9,1900.8,1.06014857]
[1742189911422,2.061,1900.9,1900.8,1.06014857]
[1742189911616,5.463,1900.9,1900.8,1.06014857]
[1742189912917,5.463,1900.9,1900.8,0.00787857]
[1742189913117,8.6708,1900.9,1900.8,0.00787857]
[1742189913325,8.6708,1900.9,1900.8,1.06014857]
[1742189921027,9.72301,1900.9,1900.8,0.00787857]
[1742189921623,8.6708,1900.9,1900.8,1.06014857]
[1742189922827,5.2688,1900.9,1900.8,1.06014857]
[1742189923034,7.9889,1900.9,1900.8,2.45914857]
[1742189923529,7.9889,1900.9,1900.8,43.25914857]
[1742189924031,4.7811,1900.9,1900.8,43.25914857]
[1742189924232,1.3851,1900.9,1900.8,43.25914857]
[1742189938545,3.393,1901.0,1900.9,1.05221]
[1742189938740,4.7641,1901.0,1900.9,2.45651]
[1742189939344,4.7641,1901.0,1900.9,43.25651]
[1742189945047,4.7641,1901.0,1900.9,42.2043]
[1742189945245,4.7641,1901.0,1900.9,41.85221]
[1742189949851,1.3711,1901.0,1900.9,41.85221]
[1742189950046,4.7451,1901.0,1900.9,41.85221]
[1742189951249,3.21567857,1901.1,1901.0,1.05216]
[1742189951452,9.0097081,1901.1,1901.0,2.37866]
[1742189951650,10.20699386,1901.1,1901.0,2.37866]
[1742189951949,10.20699386,1901.1,1901.0,43.17866]
[1742189952853,6.99919386,1901.1,1901.0,43.17866]
[1742189954249,6.99919386,1901.1,1901.0,43.48860223]
[1742189954441,6.99919386,1901.1,1901.0,42.43644223]
[1742189955753,8.05129386,1901.1,1901.0,41.10994223]
[1742189958345,6.99919386,1901.1,1901.0,41.10994223]
[1742189958547,6.99919386,1901.1,1901.0,42.54034223]
[1742189958957,8.05129386,1901.1,1901.0,42.54034223]
[1742189959256,8.05129386,1901.1,1901.0,41.10994223]
[1742189960256,6.99919386,1901.1,1901.0,41.10994223]
[1742189960653,6.99919386,1901.1,1901.0,42.47954223]
[1742189961060,6.99919386,1901.1,1901.0,43.53170223]
[1742189961662,6.99819386,1901.1,1901.0,43.53170223]
[1742189969569,6.99819386,1901.1,1901.0,41.10994223]
[1742189969570,8.05029386,1901.1,1901.0,41.10994223]
[1742189970269,8.05029386,1901.1,1901.0,42.45144223]
[1742189970572,6.99819386,1901.1,1901.0,42.45144223]
[1742189970775,3.62619386,1901.1,1901.0,42.45144223]
[1742189970965,6.99819386,1901.1,1901.0,42.45144223]
[1742189972568,8.05029386,1901.1,1901.0,42.45144223]
[1742189975476,6.99819386,1901.1,1901.0,42.45144223]
[1742189975688,5.97306433,1901.1,1901.0,42.45144223]
[1742189976478,4.77577857,1901.1,1901.0,42.45144223]
[1742189977488,6.99856505,1901.1,1901.0,42.45144223]
[1742189978681,8.05066505,1901.1,1901.0,42.45144223]
[1742189978880,6.99856505,1901.1,1901.0,42.45144223]
[1742189979988,8.05066505,1901.1,1901.0,42.45144223]
[1742189980895,8.90018053,1901.1,1901.0,42.45144223]
[1742189981782,8.98874953,1901.1,1901.0,41.10994223]
[1742189983993,14.85874953,1901.1,1901.0,0.30994223]
[1742189984192,17.35874953,1901.1,1901.0,0.30994223]
[1742189984690,17.35874657,1901.1,1901.0,0.05910073]
[1742189985082,17.35874657,1901.1,1901.0,40.85910073]
[1742189986090,1.05221,1900.9,1900.8,0.00787857]
[1742189986292,4.34857604,1900.9,1900.8,0.00787857]
[1742189986486,6.22339668,1900.9,1900.8,0.00787857]
[1742189986791,8.31669668,1900.9,1900.8,0.00787857]
[1742189986994,9.514178,1900.9,1900.8,0.00787857]
[1742189987190,9.514178,1900.9,1900.8,40.80787857]
[1742189987893,6.306378,1900.9,1900.8,40.80787857]
[1742189988090,7.63935736,1900.9,1900.8,40.80787857]
[1742189988294,9.514178,1900.9,1900.8,40.80787857]
[1742189989696,9.51418463,1900.9,1900.8,40.80787857]
[1742189990494,7.78517463,1900.9,1900.8,40.80787857]
[1742189990699,5.43058648,1900.9,1900.8,41.51747857]
[1742189990894,7.77828132,1900.9,1900.8,42.95667857]
[1742189991091,8.80358648,1900.9,1900.8,42.95667857]
[1742189991291,8.80358648,1900.9,1900.8,44.00894857]
[1742189991491,4.57048132,1900.9,1900.8,44.00894857]
[1742189991989,3.373,1900.9,1900.8,44.00894857]
[1742189992400,3.373,1900.9,1900.8,42.95667857]
[1742189993293,3.373,1900.9,1900.8,44.00894857]
[1742189994493,3.2078,1901.0,1900.9,1.05221]
[1742189994697,6.5798,1901.0,1900.9,3.08871]
[1742189997198,0.00787857,1901.1,1901.0,1.05216]
[1742189997501,3.37987857,1901.1,1901.0,2.46256]
[1742190004808,0.00787857,1901.1,1901.0,2.46256]
[1742190004998,26.21967857,1901.2,1901.1,1.0521]
[1742190005195,26.21967857,1901.2,1901.1,3.1033]
[1742190005400,23.01187857,1901.2,1901.1,3.1033]
[1742190007013,0.00787857,1901.3,1901.2,1.05205]
[1742190007311,0.00787857,1901.3,1901.2,3.04035]
[1742190008708,0.00787857,1901.3,1901.2,43.84035]
[1742190008904,0.00787857,1901.3,1901.2,46.34035]
[1742190009105,3.372,1901.5,1901.4,1.05194]
[1742190009517,33.7151,1901.8,1901.7,1.05177]
[1742190009709,37.0871,1901.8,1901.7,41.85177]
[1742190011111,33.7151,1901.8,1901.7,41.85177]
[1742190011312,35.7578,1901.8,1901.7,41.85177]
[1742190012705,35.7578,1901.8,1901.7,43.84237]
[1742190012914,29.179,1901.8,1901.7,43.84237]
[1742190013713,0.00787857,1901.9,1901.8,1.05171]
[1742190014018,0.00787857,1901.9,1901.8,2.43401]
[1742190016216,7.63836857,1901.9,1901.7,40.8]
[1742190016418,1.3484,1901.8,1901.7,40.8]
[1742190016719,2.8056,1901.8,1901.7,40.8]
[1742190018117,2.8056,1901.8,1901.7,41.85177]
[1742190019720,2.8056,1901.8,1901.7,40.8]
[1742190020624,3.85731,1901.8,1901.7,40.8]
[1742190020823,2.8056,1901.8,1901.7,40.8]
[1742190021628,2.8056,1901.8,1901.7,41.85177]
[1742190023126,2.8056,1901.8,1901.7,40.8]
[1742190024525,2.8056,1901.8,1901.7,41.85177]
[1742190026626,6.1766,1901.8,1901.7,41.85177]
[1742190027424,9.3844,1901.8,1901.7,41.85177]
[1742190031433,3.2078,1901.8,1901.7,41.85177]
[1742190032136,4.6559,1901.8,1901.7,43.96147]
[1742190033329,4.6559,1901.8,1901.7,43.25497]
[1742190033534,6.0545,1901.8,1901.7,43.25497]
[1742190042243,6.2167,1901.8,1901.7,43.25497]
[1742190042843,0.00787857,1901.9,1901.8,1.05171]
[1742190043040,3.37787857,1901.9,1901.8,3.15441]
[1742190044139,4.72007857,1901.9,1901.8,3.15441]
[1742190044335,4.72007857,1901.9,1901.8,1.05171]
[1742190044541,5.74333039,1901.9,1901.8,2.45741]
[1742190044846,5.74333039,1901.9,1901.8,3.15731]
[1742190045444,6.93338022,1901.9,1901.8,3.15731]
[1742190045943,12.80338022,1901.9,1901.7,40.8]
[1742190046150,1.05194,1901.4,1901.3,1.3438]
[1742190046341,7.64974,1901.4,1901.3,1.3438]
[1742190046540,8.83978983,1901.4,1901.3,1.3438]
[1742190046742,9.86304165,1901.4,1901.3,1.3438]
[1742190047147,9.86304165,1901.4,1901.3,42.1438]
[1742190047348,11.94124165,1901.4,1901.3,42.1438]
[1742190047548,10.88930165,1901.4,1901.3,42.1438]
[1742190048044,11.94124165,1901.4,1901.3,42.1438]
[1742190048239,10.91798983,1901.4,1901.3,42.1438]
[1742190048550,9.72794,1901.4,1901.3,42.1438]
[1742190052750,8.676,1901.4,1901.3,42.1438]
[1742190053352,7.972,1901.4,1901.3,42.1438]
[1742190053555,6.5918,1901.4,1901.3,43.19579]
[1742190054743,4.7201,1901.5,1901.3,43.19575]
[1742190054949,4.7201,1901.5,1901.4,1.4334]
[1742190055647,4.7201,1901.5,1901.4,42.2334]
[1742190059148,5.77198,1901.5,1901.4,42.2334]
[1742190061052,3.385,1901.5,1901.4,42.2334]
[1742190061252,4.7149,1901.5,1901.4,42.2334]
[1742190061850,5.76678,1901.5,1901.4,40.8]
[1742190062050,7.48207431,1901.5,1901.4,40.8]
[1742190062246,8.6702867,1901.5,1901.4,40.8]
[1742190062662,17.97576875,1901.5,1901.4,40.8]
[1742190063347,15.47576875,1901.5,1901.4,40.8]
[1742190063949,17.97576875,1901.5,1901.4,40.8]
[1742190066157,21.18356875,1901.5,1901.4,40.8]
[1742190066757,18.68356875,1901.5,1901.4,40.8]
[1742190067860,1.0521,1901.1,1901.0,1.3535]
[1742190068160,4.4311,1901.1,1901.0,1.3535]
[1742190068657,6.4469,1901.1,1901.0,1.3535]
[1742190068857,8.13477359,1901.1,1901.0,42.1535]
[1742190069055,14.00477359,1901.1,1901.0,40.8]
[1742190069259,16.12699857,1901.1,1901.0,40.8]
[1742190069762,16.12699553,1901.1,1901.0,40.8]
[1742190070161,18.62699553,1901.1,1901.0,40.8]
[1742190070554,18.62699553,1901.1,1900.8,0.00787857]
[1742190070555,1.05221,1900.9,1900.8,0.00787857]
[1742190070756,4.34850598,1900.9,1900.8,0.00787857]
[1742190071066,7.40380553,1900.9,1900.8,0.00787857]
[1742190071359,11.34850553,1900.9,1900.8,0.00787857]
[1742190071557,11.34850553,1900.9,1900.8,40.80787857]
[1742190071757,1.05253,1900.4,1900.2,2.108]
[1742190072061,1.05253,1900.4,1900.3,1.3301]
[1742190072259,4.44253,1900.4,1900.3,1.3301]
[1742190072459,1.0526,1900.2,1900.1,0.7004]
[1742190072664,4.2604,1900.2,1900.1,0.7004]
[1742190072858,4.2604,1900.2,1900.1,41.5004]
[1742190073467,3.2078,1900.2,1900.1,41.5004]
[1742190073660,4.2604,1900.2,1900.1,41.5004]
[1742190073859,4.2604,1900.2,1900.1,42.8305]
[1742190074567,3.2078,1900.2,1900.1,42.8305]
[1742190074760,3.2078,1900.2,1900.1,43.5536]
[1742190075064,6.5998,1900.2,1900.1,44.60626]
[1742190075667,0.00787857,1900.3,1900.2,1.0526]
[1742190075963,2.9803,1900.4,1900.3,1.05254]
[1742190076268,32.573,1900.6,1900.4,1.05249]
[1742190076457,32.573,1900.6,1900.5,42.9319]
[1742190076658,32.573,1900.6,1900.5,43.98433]
[1742190077663,32.573,1900.6,1900.5,42.9319]
[1742190078772,32.573,1900.6,1900.5,43.98433]
[1742190079573,32.573,1900.6,1900.5,42.9319]
[1742190081369,33.62538,1900.6,1900.5,42.9319]
[1742190082575,34.97728,1900.6,1900.5,42.9319]
[1742190083358,34.97728,1900.6,1900.5,42.2462]
[1742190083563,34.97728,1900.6,1900.5,40.8]
[1742190086673,33.9249,1900.6,1900.5,40.8]
[1742190087175,33.9249,1900.6,1900.5,42.1188]
[1742190087973,33.9249,1900.6,1900.5,43.17123]
[1742190087974,32.573,1900.6,1900.5,43.17123]
[1742190088676,32.568,1900.6,1900.5,43.17123]
[1742190088879,29.178,1900.6,1900.5,43.17123]
[1742190089176,32.568,1900.6,1900.5,43.17123]
[1742190090172,32.568,1900.6,1900.5,42.1188]
[1742190090579,32.568,1900.6,1900.5,43.17123]
[1742190097879,33.9612,1900.6,1900.5,43.17123]
[1742190098078,33.9612,1900.6,1900.5,42.1188]
[1742190098079,35.01358,1900.6,1900.5,42.1188]
[1742190099487,33.9612,1900.6,1900.5,43.17123]
[1742190099689,33.9612,1900.6,1900.5,42.1188]
[1742190100188,33.9612,1900.6,1900.5,43.17123]
[1742190100681,29.178,1900.6,1900.5,43.17123]
[1742190105194,3.21567857,1900.7,1900.6,1.05238]
[1742190105402,0.00787857,1900.7,1900.6,3.09738]
[1742190105596,0.00787857,1900.7,1900.6,6.30518]
[1742190105790,3.383,1900.9,1900.8,1.05227]
[1742190106094,32.57,1901.1,1901.0,1.05216]
[1742190106290,29.186,1901.1,1901.0,1.05216]
[1742190106486,33.9154,1901.1,1901.0,1.05216]
[1742190106890,30.5314,1901.1,1901.0,1.05216]
[1742190107098,29.186,1901.1,1901.0,1.05216]
[1742190107699,29.186,1901.1,1901.0,1.73306]
[1742190108295,29.186,1901.1,1901.0,42.53306]
[1742190109196,4.08840872,1901.2,1901.1,1.0521]
[1742190109397,4.08840872,1901.2,1901.1,2.4797]
[1742190109604,0.70340872,1901.2,1901.1,2.4797]
[1742190110106,0.70340872,1901.2,1901.1,43.2797]
[1742190110302,2.08660872,1901.2,1901.1,43.2797]
[1742190110805,5.46960872,1901.2,1901.1,43.2797]
[1742190116309,4.08640872,1901.2,1901.1,43.2797]
[1742190116610,0.70340872,1901.2,1901.1,43.2797]
[1742190117003,2.16090872,1901.2,1901.1,43.2797]
[1742190118096,2.84660872,1901.2,1901.1,43.2797]
[1742190118707,2.84660872,1901.2,1901.1,40.8]
[1742190120407,3.89865872,1901.2,1901.1,40.8]
[1742190123513,4.91533144,1901.2,1901.1,40.8]
[1742190123703,5.00383491,1901.2,1901.1,40.8]
[1742190124207,8.68685636,1901.2,1901.1,40.8]
[1742190124909,13.46215636,1901.2,1901.1,40.8]
[1742190125208,1.0521,1901.1,1901.0,0.00787857]
[1742190125413,1.0521,1901.1,1900.2,3.2078]
[1742190125414,1.05245,1900.5,1900.2,5.61865]
[1742190125600,4.7583,1900.4,1900.2,5.61865]
[1742190126017,4.0775,1900.4,1900.3,1.05254]
[1742190126209,4.0775,1900.4,1900.3,43.21084]
[1742190127113,4.0775,1900.4,1900.3,42.1583]
[1742190127504,4.0775,1900.4,1900.3,43.21084]
[1742190128213,0.6955,1900.4,1900.3,43.21084]
[1742190128413,4.0905,1900.4,1900.3,43.21084]
[1742190128715,5.5351,1900.4,1900.3,43.21084]
[1742190132618,5.5351,1900.4,1900.3,42.1583]
[1742190133120,8.7429,1900.4,1900.3,42.1583]
[1742190133308,8.7429,1900.4,1900.3,40.8]
[1742190133511,9.79539,1900.4,1900.3,40.8]
[1742190133715,38.97839,1900.4,1900.3,40.8]
[1742190135012,37.9259,1900.4,1900.3,40.8]
[1742190135213,37.9259,1900.4,1900.3,42.1562]
[1742190136621,38.97839,1900.4,1900.3,40.8]
[1742190139717,39.06686221,1900.4,1900.3,40.8]
[1742190141022,38.97839,1900.4,1900.3,40.8]
[1742190141424,1.05254,1900.3,1900.2,1.39997857]